bitfinex/quotes_BTCUSD_20220115
["timestamp","ask_amount","ask_price","bid_price","bid_amount"]
[1642249622400,0.27840444,42982.0,42978.0,0.69555179]
[1642249622600,0.00125773,42980.0,42978.0,0.69555179]
[1642249622802,0.05942273,42980.0,42978.0,0.69555179]
[1642249623200,0.05942273,42980.0,42975.0,0.00931]
[1642249623403,0.05942273,42980.0,42973.0,0.66016179]
[1642249623600,0.00125773,42980.0,42973.0,0.66016179]
[1642249623850,0.058172,42977.0,42973.0,0.66016179]
[1642249624250,0.058172,42977.0,42972.0,0.25938964]
[1642249624851,0.14438162,42976.0,42968.0,0.2901]
[1642249625053,0.05818,42973.0,42967.0,0.5998]
[1642249625251,0.05818,42973.0,42967.0,0.0011]
[1642249625451,0.27442355,42971.0,42967.0,0.0011]
[1642249625852,0.47526152,42973.0,42967.0,0.0011]
[1642249626653,0.058181,42970.0,42967.0,0.0011]
[1642249628395,0.058181,42970.0,42966.0,0.25883317]
[1642249629396,0.68962336,42973.0,42966.0,0.39094134]
[1642249629597,0.68962336,42973.0,42966.0,0.50728691]
[1642249629797,0.68962336,42973.0,42967.0,0.36429514]
[1642249629997,0.68962336,42973.0,42967.0,0.36421314]
[1642249630598,0.68962336,42973.0,42968.0,0.3061192]
[1642249630897,0.39245199,42973.0,42968.0,0.3061192]
[1642249632250,0.39245199,42973.0,42969.0,0.69587661]
[1642249633452,0.39245199,42973.0,42969.0,0.65127661]
[1642249634053,0.39245199,42973.0,42969.0,0.70945037]
[1642249634451,0.39245199,42973.0,42969.0,0.05817376]
[1642249637205,0.058175,42973.0,42969.0,0.05817376]
[1642249637805,0.9703,42982.0,42972.0,0.05817048]
[1642249638004,0.14405078,42979.0,42969.0,0.11633482]
[1642249638205,0.14405078,42979.0,42972.0,0.26249693]
[1642249638406,0.14405078,42979.0,42972.0,0.21789693]
[1642249639247,0.33732866,42980.0,42972.0,0.21789693]
[1642249639443,0.33732866,42980.0,42964.0,0.0011]
[1642249639444,0.058169,42979.0,42966.0,0.79431009]
[1642249639645,0.00122995,42976.0,42966.0,0.79431009]
[1642249640444,0.00122995,42976.0,42967.0,0.28848875]
[1642249640643,0.00122995,42976.0,42968.0,0.11633689]
[1642249640844,0.00122995,42976.0,42971.0,0.05817034]
[1642249641446,0.00122995,42976.0,42971.0,0.65462322]
[1642249641649,0.05940195,42976.0,42971.0,0.59645288]
[1642249642697,0.05940195,42976.0,42971.0,0.65462443]
[1642249643499,0.05940195,42976.0,42971.0,0.60982443]
[1642249644302,0.05940195,42976.0,42971.0,0.59645288]
[1642249644901,0.058172,42976.0,42971.0,0.65462334]
[1642249645299,0.06421374,42979.0,42971.0,0.65462334]
[1642249646002,0.06421374,42979.0,42971.0,0.59645288]
[1642249646443,0.02,42976.0,42971.0,0.59645288]
[1642249646643,0.058176,42975.0,42971.0,0.59645288]
[1642249647845,0.00124723,42972.0,42971.0,0.59645288]
[1642249648044,1.67495723,42972.0,42971.0,0.59645288]
[1642249648243,2.05109023,42972.0,42971.0,0.59645288]
[1642249648442,0.55109023,42972.0,42969.0,0.93191862]
[1642249648645,0.55109023,42972.0,42967.0,0.55185288]
[1642249648646,0.05818,42970.0,42967.0,0.55185288]
[1642249651599,0.05818,42970.0,42964.0,0.75514161]
[1642249652797,0.05818,42970.0,42964.0,0.69696169]
[1642249653399,0.05818,42970.0,42964.0,0.65226169]
[1642249653846,0.05818,42970.0,42964.0,0.65126169]
[1642249654248,0.05818,42970.0,42964.0,0.70944257]
[1642249654447,0.05818,42970.0,42964.0,0.05818088]
[1642249654852,0.05818,42970.0,42962.0,0.4221543]
[1642249655050,0.4250011,42973.0,42962.0,0.1163543]
[1642249655750,0.4250011,42973.0,42964.0,0.05817973]
[1642249655948,0.13050033,42972.0,42964.0,0.05817973]
[1642249656751,0.00122785,42966.0,42960.0,0.05818551]
[1642249657051,0.00122785,42966.0,42960.0,0.59592047]
[1642249657523,0.00122785,42966.0,42959.0,0.009313]
[1642249657726,0.24205878,42960.0,42959.0,0.009313]
[1642249658520,0.24205878,42960.0,42951.0,2.15888905]
[1642249658721,0.24205878,42960.0,42952.0,0.05819632]
[1642249658923,0.29833852,42956.0,42952.0,0.05819632]
[1642249659924,0.29833852,42956.0,42948.0,0.60633547]
[1642249659925,0.12998098,42955.0,42948.0,0.60633547]
[1642249660127,0.058202,42954.0,42948.0,0.60633547]
[1642249660625,0.24327061,42960.0,42953.0,0.3602588]
[1642249660922,0.24327061,42960.0,42954.0,0.28432795]
[1642249661354,0.24327061,42960.0,42956.0,0.05818893]
[1642249661753,0.24205878,42960.0,42956.0,0.05818893]
[1642249662353,0.24205878,42960.0,42954.0,0.4007058]
[1642249662955,0.12520424,42959.0,42954.0,0.4007058]
[1642249663155,0.24205878,42960.0,42954.0,0.11637785]
[1642249663355,0.058191,42962.0,42954.0,0.11637785]
[1642249663556,0.058191,42962.0,42954.0,0.12976585]
[1642249664155,0.2959,42963.0,42954.0,0.07157785]
[1642249664356,0.058189,42962.0,42960.0,0.59592047]
[1642249664555,0.27604511,42961.0,42960.0,0.59592047]
[1642249665004,0.27604511,42961.0,42959.0,0.6957753]
[1642249668505,0.27604511,42961.0,42959.0,0.6508753]
[1642249669756,1.0282301,42960.0,42959.0,0.6508753]
[1642249669955,1.4043631,42960.0,42959.0,0.6508753]
[1642249670156,0.376133,42960.0,42957.0,0.27235713]
[1642249670355,0.33423811,42961.0,42957.0,0.27235713]
[1642249671057,0.27604511,42961.0,42957.0,0.27235713]
[1642249671357,0.27604511,42961.0,42956.0,0.05819096]
[1642249672156,0.27604511,42961.0,42958.0,0.27235713]
[1642249672703,0.27604511,42961.0,42959.0,0.05818737]
[1642249672903,0.27604511,42961.0,42959.0,0.3305445]
[1642249673503,0.27604511,42961.0,42960.0,0.36400664]
[1642249673803,0.65217811,42961.0,42959.0,0.05818737]
[1642249674003,0.376133,42960.0,42957.0,0.0581898]
[1642249674206,0.27604511,42961.0,42957.0,0.0581898]
[1642249675104,0.27604511,42961.0,42955.0,0.35107038]
[1642249675305,0.27604511,42961.0,42958.0,0.28629295]
[1642249675708,0.33423911,42961.0,42958.0,0.28629295]
[1642249676005,0.33423911,42961.0,42956.0,0.28629295]
[1642249676663,0.33423911,42961.0,42959.0,0.98309744]
[1642249677362,0.33423911,42961.0,42959.0,0.69680449]
[1642249677562,0.33423911,42961.0,42958.0,0.69680449]
[1642249678562,0.33423911,42961.0,42958.0,0.65210449]
[1642249679765,0.27604511,42961.0,42956.0,0.28861534]
[1642249680001,0.29673233,42964.0,42956.0,0.23042495]
[1642249680403,1.76821304,42966.0,42957.0,0.11636742]
[1642249680601,1.76821304,42966.0,42957.0,0.34679237]
[1642249681203,0.28092703,42963.0,42961.0,0.59726814]
[1642249681803,0.28092703,42963.0,42962.0,0.59726814]
[1642249682005,0.65706003,42963.0,42962.0,0.59726814]
[1642249683754,1.55706003,42963.0,42962.0,0.55226814]
[1642249684152,1.55706003,42963.0,42961.0,0.55226814]
[1642249684355,0.95326704,42962.0,42961.0,0.55226814]
[1642249684554,0.376133,42962.0,42961.0,0.55226814]
[1642249687153,0.376133,42962.0,42958.0,0.69683938]
[1642249687355,0.05819,42962.0,42958.0,0.69683938]
[1642249688002,0.05819,42962.0,42958.0,0.94048194]
[1642249688209,2.15458098,42966.0,42958.0,0.94048194]
[1642249688402,0.058187,42965.0,42961.0,0.0581842]
[1642249688601,0.50257464,42964.0,42958.0,0.89558194]
[1642249688802,2.03819398,42966.0,42959.0,0.65193938]
[1642249689006,0.12531635,42965.0,42959.0,0.65193938]
[1642249689202,1.76821304,42966.0,42960.0,0.33760004]
[1642249689403,0.058187,42965.0,42960.0,0.33760004]
[1642249689806,0.18161912,42965.0,42960.0,0.33760004]
[1642249690001,0.058187,42965.0,42960.0,0.33760004]
[1642249690702,0.376133,42964.0,42960.0,0.33760004]
[1642249690902,0.434323,42964.0,42957.0,0.05818958]
[1642249691103,0.05819,42964.0,42957.0,0.05818958]
[1642249691953,0.05819,42964.0,42957.0,0.34353175]
[1642249692154,0.05819,42964.0,42957.0,0.34353129]
[1642249692554,0.05819,42964.0,42961.0,0.597274]
[1642249692754,0.376133,42963.0,42961.0,0.597274]
[1642249692953,0.72468002,42962.0,42961.0,0.597274]
[1642249693155,0.976133,42962.0,42961.0,0.597274]
[1642249693356,0.376133,42962.0,42961.0,0.597274]
[1642249693755,0.376133,42962.0,42961.0,0.552574]
[1642249694157,0.05819,42964.0,42957.0,0.34353148]
[1642249694756,0.05819,42964.0,42955.0,0.35298983]
[1642249695002,0.06424261,42960.0,42955.0,0.35298983]
[1642249695803,0.36316147,42960.0,42955.0,0.35298983]
[1642249698606,0.36316147,42960.0,42954.0,0.009315]
[1642249698863,0.36316147,42960.0,42951.0,0.38134728]
[1642249699466,0.36316147,42960.0,42958.0,0.69554383]
[1642249700766,0.06424261,42960.0,42958.0,0.69554383]
[1642249700968,0.00604861,42960.0,42958.0,0.69554383]
[1642249701667,0.00604861,42960.0,42959.0,0.43844931]
[1642249702167,0.00604861,42960.0,42959.0,1.45404827]
[1642249702610,0.00604861,42960.0,42959.0,0.75850444]
[1642249703111,0.00604861,42960.0,42959.0,0.32005513]
[1642249703715,0.00604861,42960.0,42959.0,0.27525513]
[1642249705118,0.00604861,42960.0,42958.0,0.69683459]
[1642249706456,0.00604861,42960.0,42959.0,0.69683459]
[1642249707653,0.00542843,42960.0,42959.0,0.69683459]
[1642249707854,0.00542843,42960.0,42958.0,0.69683459]
[1642249708455,0.0001,42965.0,42958.0,0.69683459]
[1642249708655,0.0001,42965.0,42958.0,0.65223459]
[1642249709258,0.12269626,42965.0,42958.0,0.65223459]
[1642249709762,0.12269626,42965.0,42961.0,0.59727095]
[1642249710012,0.376133,42964.0,42961.0,0.59727095]
[1642249710615,0.43432,42964.0,42961.0,0.59727095]
[1642249711216,0.43432,42964.0,42959.0,0.59727095]
[1642249713018,0.53432,42964.0,42959.0,0.59727095]
[1642249713855,0.53432,42964.0,42959.0,0.55247095]
[1642249714456,0.43432,42964.0,42959.0,0.55247095]
[1642249714655,0.43432,42964.0,42953.0,0.67494255]
[1642249714856,0.2748294,42959.0,42953.0,0.67494255]
[1642249715059,0.2748294,42959.0,42954.0,0.12551011]
[1642249715456,0.2748294,42959.0,42953.0,0.42984035]
[1642249715857,0.2748294,42959.0,42954.0,0.12581769]
[1642249716758,0.2748294,42959.0,42954.0,0.18401016]
[1642249716958,0.2748294,42959.0,42957.0,0.69684612]
[1642249718801,0.2748294,42959.0,42957.0,0.65214612]
[1642249720503,0.2748294,42959.0,42954.0,0.26200938]
[1642249720703,0.058197,42958.0,42954.0,0.26200938]
[1642249721104,0.058197,42958.0,42952.0,0.11637901]
[1642249722162,0.2748294,42959.0,42952.0,0.11637901]
[1642249722364,0.2748294,42959.0,42957.0,0.597314]
[1642249722965,0.2748294,42959.0,42958.0,0.597314]
[1642249723563,0.24952462,42959.0,42954.0,0.05819289]
[1642249723763,0.24952462,42959.0,42954.0,0.01349289]
[1642249723962,0.24952462,42959.0,42953.0,0.26202125]
[1642249724767,0.94952462,42959.0,42958.0,0.59731247]
[1642249725208,0.34952462,42959.0,42958.0,0.59731247]
[1642249725807,0.34952462,42959.0,42952.0,0.05819604]
[1642249725808,0.34952462,42959.0,42956.0,0.59731247]
[1642249726207,0.24952462,42959.0,42956.0,0.59731247]
[1642249726408,0.34952462,42959.0,42956.0,0.59731247]
[1642249726608,0.33952462,42959.0,42956.0,0.59731247]
[1642249727407,0.23952462,42959.0,42956.0,0.59731247]
[1642249727608,0.23952462,42959.0,42955.0,0.69688896]
[1642249727609,0.058197,42958.0,42957.0,0.59731247]
[1642249728609,0.33952462,42959.0,42957.0,0.59731247]
[1642249728610,0.23952462,42959.0,42957.0,0.59731247]
[1642249728856,0.72280034,42958.0,42957.0,0.55271247]
[1642249729060,0.7,42958.0,42957.0,0.55271247]
[1642249729756,0.7,42958.0,42955.0,0.69688896]
[1642249729956,0.058204,42957.0,42953.0,0.69688896]
[1642249731658,0.18005377,42957.0,42953.0,0.69688896]
[1642249732058,0.23826177,42957.0,42953.0,0.69688896]
[1642249732905,0.23826177,42957.0,42951.0,0.69688896]
[1642249733105,0.27821041,42952.0,42951.0,0.69688896]
[1642249733907,0.27821041,42952.0,42951.0,0.65218896]
[1642249735813,0.27821041,42952.0,42951.0,0.96273384]
[1642249736256,0.40196632,42952.0,42951.0,0.96273384]
[1642249736457,0.39914059,42952.0,42951.0,0.65218896]
[1642249737058,0.50035234,42952.0,42951.0,0.65218896]
[1642249737258,0.50035234,42952.0,42950.0,0.0005351]
[1642249737458,2.4693566,42951.0,42950.0,0.0005351]
[1642249737659,2.5693566,42951.0,42950.0,0.0005351]
[1642249737858,2.55,42950.0,42942.0,0.79541009]
[1642249738059,0.00127248,42943.0,42942.0,0.79541009]
[1642249738259,1.33986248,42943.0,42942.0,0.79541009]
[1642249738461,1.33986248,42943.0,42942.0,0.0011]
[1642249738658,1.71599548,42943.0,42942.0,0.0011]
[1642249738858,0.68253213,42942.0,42939.0,0.77092629]
[1642249739057,0.30639913,42942.0,42939.0,0.77092629]
[1642249739257,0.30639913,42942.0,42939.0,0.76114976]
[1642249739461,0.00127248,42943.0,42939.0,0.76114976]
[1642249739658,9.0,42943.0,42939.0,0.76114976]
[1642249739859,9.0,42943.0,42938.0,0.0011]
[1642249740505,9.001279,42943.0,42938.0,0.0011]
[1642249741307,0.32154232,42940.0,42938.0,0.0011]
[1642249741507,0.38218472,42939.0,42938.0,0.0011]
[1642249741707,0.00605172,42939.0,42938.0,0.0011]
[1642249743614,0.311127,42942.0,42938.0,0.0011]
[1642249743857,9.001279,42943.0,42936.0,0.11642044]
[1642249744657,9.001279,42943.0,42938.0,0.058211]
[1642249745058,0.376133,42942.0,42936.0,0.11642044]
[1642249745658,9.001279,42943.0,42936.0,0.11642044]
[1642249745855,0.384352,42942.0,42936.0,0.11642044]
[1642249746057,0.25673535,42938.0,42935.0,0.79994214]
[1642249746458,0.25673535,42938.0,42936.0,6.877e-05]
[1642249748615,9.001279,42943.0,42936.0,6.877e-05]
[1642249748817,9.001279,42943.0,42933.0,0.76617604]
[1642249749014,9.001279,42943.0,42934.0,0.76617604]
[1642249750215,9.001279,42943.0,42939.0,0.05821407]
[1642249751016,9.001279,42943.0,42931.0,0.0021]
[1642249751264,9.001279,42943.0,42932.0,0.058219]
[1642249751464,9.001279,42943.0,42932.0,0.05828776]
[1642249751661,9.001279,42943.0,42937.0,0.27422156]
[1642249752762,9.001279,42943.0,42941.0,0.69710309]
[1642249752963,0.376133,42942.0,42941.0,0.69710309]
[1642249753362,0.49603124,42942.0,42941.0,0.69710309]
[1642249753563,1.09603124,42942.0,42941.0,0.69710309]
[1642249753763,1.09603124,42942.0,42941.0,0.65250309]
[1642249753966,2.55,42941.0,42938.0,0.04979308]
[1642249756615,0.00128623,42936.0,42928.0,6.876e-05]
[1642249756812,0.00128623,42936.0,42927.0,8.595e-05]
[1642249757211,0.00128623,42936.0,42927.0,0.27533313]
[1642249757212,0.28218258,42934.0,42927.0,0.27533313]
[1642249757412,0.28218258,42934.0,42928.0,0.11062677]
[1642249757615,0.28218258,42934.0,42928.0,0.058225]
[1642249758759,0.28218258,42934.0,42931.0,0.05239932]
[1642249758959,0.28218258,42934.0,42931.0,0.00769932]
[1642249759360,0.00128623,42936.0,42931.0,0.00769932]
[1642249760762,0.00128623,42936.0,42929.0,0.2749435]
[1642249760763,0.00128623,42936.0,42932.0,0.05822]
[1642249761064,0.26928307,42938.0,42933.0,0.30335154]
[1642249761767,0.26928307,42938.0,42933.0,0.1047835]
[1642249761964,0.26928307,42938.0,42934.0,0.12759004]
[1642249762364,0.26928307,42938.0,42934.0,0.12564831]
[1642249762609,0.26928307,42938.0,42935.0,0.05239479]
[1642249762810,0.26928307,42938.0,42936.0,0.058215]
[1642249763210,0.26928307,42938.0,42933.0,0.2212115]
[1642249763413,0.26928307,42938.0,42934.0,0.12668505]
[1642249763710,0.26928307,42938.0,42935.0,0.05239495]
[1642249763911,0.26928307,42938.0,42935.0,0.00779495]
[1642249764712,0.26928307,42938.0,42936.0,0.058215]
[1642249765111,0.26928307,42938.0,42934.0,0.05239476]
[1642249765312,0.26928307,42938.0,42934.0,0.17731321]
[1642249766257,0.26928307,42938.0,42935.0,0.058217]
[1642249766658,0.26928307,42938.0,42934.0,0.05239476]
[1642249766961,0.00122179,42942.0,42934.0,0.15002214]
[1642249767158,0.00122179,42942.0,42936.0,0.058214]
[1642249767357,9.0,42943.0,42936.0,0.058214]
[1642249767957,9.26163832,42943.0,42936.0,0.058214]
[1642249768456,9.26163832,42943.0,42938.0,0.04656394]
[1642249768657,9.26163832,42943.0,42938.0,0.10477594]
[1642249768856,9.26163832,42943.0,42938.0,0.04656394]
[1642249769056,9.26163832,42943.0,42938.0,0.00106394]
[1642249769057,9.0,42943.0,42938.0,0.00106394]
[1642249770111,9.0,42943.0,42940.0,0.058208]
[1642249770308,9.0,42943.0,42941.0,0.12841147]
[1642249770713,9.0,42943.0,42940.0,0.058208]
[1642249770912,9.0,42943.0,42940.0,0.18387385]
[1642249771114,9.0,42943.0,42940.0,0.32356179]
[1642249772616,9.0,42943.0,42942.0,0.34459791]
[1642249772914,9.0,42943.0,42942.0,0.49371554]
[1642249773764,9.0,42943.0,42942.0,1.62702843]
[1642249773964,7.40681484,42943.0,42942.0,1.58212843]
[1642249777522,7.40681484,42943.0,42942.0,0.78550433]
[1642249778419,7.40681484,42943.0,42942.0,1.58212843]
[1642249779020,6.48420401,42943.0,42942.0,4.23212843]
[1642249779220,6.48420401,42943.0,42942.0,3.93602843]
[1642249779221,5.53308525,42943.0,42942.0,3.93602843]
[1642249779421,5.43732909,42943.0,42942.0,3.93602843]
[1642249779619,5.41036723,42943.0,42942.0,3.93602843]
[1642249779823,4.94490123,42943.0,42942.0,3.7869108]
[1642249780019,4.94490123,42943.0,42942.0,3.0902867]
[1642249780222,4.94490123,42943.0,42942.0,3.18687126]
[1642249780420,4.47942723,42943.0,42942.0,3.28687126]
[1642249781020,3.50464466,42943.0,42942.0,3.65299497]
[1642249781270,2.36946239,42943.0,42942.0,3.65299497]
[1642249781666,1.89046472,42943.0,42942.0,3.65299497]
[1642249781867,1.85839531,42943.0,42942.0,4.54358636]
[1642249782066,0.0001,42965.0,42955.0,0.2462742]
[1642249782270,0.0001,42965.0,42953.0,0.058181]
[1642249782470,0.0001,42965.0,42954.0,0.19420413]
[1642249783068,0.28273379,42965.0,42953.0,0.43781519]
[1642249783268,0.28273379,42965.0,42955.0,0.116364]
[1642249784072,0.28273379,42965.0,42957.0,0.59736849]
[1642249784270,0.28273379,42965.0,42957.0,0.55266849]
[1642249784771,0.34092279,42965.0,42957.0,0.55266849]
[1642249785017,0.376133,42964.0,42957.0,0.55266849]
[1642249785415,0.476133,42964.0,42957.0,0.55266849]
[1642249786314,0.476133,42964.0,42955.0,0.69692991]
[1642249786516,0.1,42964.0,42955.0,0.69692991]
[1642249786914,0.28273379,42965.0,42955.0,0.69692991]
[1642249787113,0.34092179,42965.0,42955.0,0.69692991]
[1642249787518,0.44092179,42965.0,42954.0,0.75511891]
[1642249789166,0.44092179,42965.0,42955.0,0.09674524]
[1642249789563,0.44092179,42965.0,42956.0,0.058187]
[1642249789761,0.38273379,42965.0,42956.0,0.058187]
[1642249790164,0.38246939,42965.0,42956.0,0.058187]
[1642249790961,0.28246939,42965.0,42956.0,0.058187]
[1642249792260,0.058189,42964.0,42956.0,0.058187]
[1642249792510,0.058189,42964.0,42956.0,0.65555924]
[1642249794212,0.058189,42964.0,42956.0,0.61085924]
[1642249795013,0.058189,42964.0,42956.0,0.59737224]
[1642249795914,0.38246939,42965.0,42956.0,0.59737224]
[1642249796115,0.43432619,42964.0,42956.0,0.59737224]
[1642249796359,0.376133,42964.0,42956.0,0.59737224]
[1642249796565,0.476133,42964.0,42956.0,0.59737224]
[1642249796961,1.06651267,42964.0,42954.0,0.59737224]
[1642249797161,0.69037967,42964.0,42954.0,0.59737224]
[1642249797364,0.69037967,42964.0,42955.0,0.058189]
[1642249797562,0.69037967,42964.0,42955.0,0.19824449]
[1642249797862,1.96834202,42963.0,42955.0,0.19824449]
[1642249798064,2.06834202,42963.0,42955.0,0.058189]
[1642249798862,2.06834202,42963.0,42955.0,0.65556124]
[1642249799262,2.06834202,42963.0,42955.0,0.61056124]
[1642249799461,1.96834202,42963.0,42955.0,0.61056124]
[1642249799661,1.96834202,42963.0,42956.0,0.59737224]
[1642249799863,0.28246939,42965.0,42956.0,0.59737224]
[1642249800114,0.28246939,42965.0,42960.0,0.058182]
[1642249800514,0.376133,42964.0,42956.0,0.59737224]
[1642249800719,0.85118819,42966.0,42956.0,0.59737224]
[1642249800720,0.32554971,42958.0,42956.0,0.59737224]
[1642249803420,1.19115252,42957.0,42953.0,0.69692991]
[1642249803618,1.34935549,42957.0,42953.0,0.69692991]
[1642249803871,2.93339899,42954.0,42953.0,0.17492991]
[1642249804070,0.376133,42951.0,42946.0,0.79649132]
[1642249804269,0.00122768,42947.0,42946.0,0.79649132]
[1642249804470,0.52502361,42947.0,42946.0,0.75109132]
[1642249804670,0.00122768,42947.0,42946.0,0.75109132]
[1642249804871,0.00122768,42947.0,42941.0,0.75109132]
[1642249805069,0.28109691,42945.0,42941.0,0.75109132]
[1642249805671,0.28109691,42945.0,42941.0,0.80929832]
[1642249805873,0.28109691,42945.0,42941.0,0.75109132]
[1642249806070,0.28109691,42945.0,42938.0,0.116411]
[1642249809218,0.01895546,42942.0,42938.0,0.116411]
[1642249809419,0.03791092,42942.0,42938.0,0.071411]
[1642249811867,0.03791092,42942.0,42939.0,0.04069291]
[1642249812265,0.03791092,42942.0,42940.0,0.00768221]
[1642249812468,0.03791092,42942.0,42941.0,0.00627994]
[1642249812666,0.03791092,42942.0,42940.0,0.0372181]
[1642249812866,0.03778275,42942.0,42940.0,0.0372181]
[1642249813068,0.03778275,42942.0,42940.0,0.10705347]
[1642249813767,0.03778275,42942.0,42940.0,0.16525147]
[1642249814268,0.01895546,42942.0,42940.0,0.058198]
[1642249814468,0.01882729,42941.0,42940.0,0.79662392]
[1642249814666,0.03778275,42941.0,42940.0,0.79662392]
[1642249815117,0.03778275,42941.0,42938.0,0.071411]
[1642249819163,0.03778275,42941.0,42938.0,0.44394631]
[1642249819565,0.03778275,42941.0,42938.0,0.39924631]
[1642249819566,0.01895546,42941.0,42938.0,0.39924631]
[1642249819764,0.00122487,42946.0,42941.0,0.058204]
[1642249820465,0.30736408,42948.0,42938.0,0.55747581]
[1642249820664,0.30736408,42948.0,42938.0,0.42035113]
[1642249820864,0.30736408,42948.0,42940.0,0.058208]
[1642249821466,0.28885585,42947.0,42940.0,0.058208]
[1642249822912,0.28885585,42947.0,42940.0,0.06351236]
[1642249823113,0.28885585,42947.0,42940.0,0.058208]
[1642249823317,0.44222477,42947.0,42940.0,0.058208]
[1642249823515,0.44222477,42947.0,42937.0,0.009318]
[1642249823516,0.54222477,42947.0,42937.0,0.009318]
[1642249823714,0.058216,42944.0,42937.0,0.009318]
[1642249824414,0.10127641,42947.0,42937.0,0.009318]
[1642249824615,0.15336892,42946.0,42937.0,0.058213]
[1642249824814,0.01882729,42942.0,42937.0,0.058213]
[1642249825016,0.03778275,42942.0,42937.0,0.058213]
[1642249827467,0.03778275,42942.0,42934.0,0.389556]
[1642249827764,0.27513392,42941.0,42937.0,0.058213]
[1642249827965,0.27513392,42941.0,42934.0,0.389556]
[1642249828164,0.27513392,42941.0,42934.0,0.125738]
[1642249828363,0.03778275,42942.0,42934.0,0.125738]
[1642249828766,0.03778275,42942.0,42937.0,0.058213]
[1642249829467,0.03778275,42942.0,42937.0,0.013513]
[1642249829664,0.03778275,42942.0,42937.0,0.04843642]
[1642249829863,0.01895546,42942.0,42939.0,0.058208]
[1642249830116,0.30653693,42944.0,42939.0,0.058208]
[1642249830117,0.01882729,42940.0,42939.0,0.058208]
[1642249830314,0.03778275,42940.0,42939.0,0.058208]
[1642249830714,0.03778275,42940.0,42935.0,0.0061367]
[1642249830915,0.03778275,42940.0,42936.0,0.00642716]
[1642249831113,0.03778275,42940.0,42934.0,0.125738]
[1642249831314,0.03778275,42940.0,42936.0,0.00715088]
[1642249831515,0.03778275,42940.0,42936.0,0.06536488]
[1642249831716,0.03778275,42940.0,42936.0,0.058214]
[1642249831914,0.03778275,42940.0,42936.0,0.06519604]
[1642249832516,0.03778275,42940.0,42936.0,0.058214]
[1642249832716,0.03778275,42940.0,42938.0,0.04933014]
[1642249832917,0.03778275,42940.0,42939.0,0.19738094]
[1642249833416,0.03778275,42940.0,42939.0,0.058201]
[1642249834667,0.03778275,42940.0,42939.0,0.013601]
[1642249838819,0.03778275,42940.0,42937.0,0.116412]
[1642249839021,0.01882729,42940.0,42937.0,0.116412]
[1642249839220,0.30009887,42944.0,42937.0,0.116412]
[1642249839421,0.03778275,42938.0,42937.0,0.116412]
[1642249839619,0.03778275,42938.0,42937.0,0.071312]
[1642249843463,0.03778275,42938.0,42937.0,0.16150424]
[1642249843664,0.03093911,42938.0,42937.0,0.29397976]
[1642249843964,0.03093911,42938.0,42937.0,0.16150424]
[1642249844366,0.01882729,42938.0,42937.0,0.61150424]
[1642249844569,0.03093911,42938.0,42937.0,0.11680424]
[1642249844766,0.03093911,42938.0,42937.0,0.24983986]
[1642249845010,0.03093911,42938.0,42937.0,0.11680424]
[1642249846812,0.03093911,42938.0,42937.0,0.91349956]
[1642249847412,0.03093911,42938.0,42937.0,0.11680424]
[1642249849568,0.03093911,42938.0,42937.0,0.07220424]
[1642249849770,0.01093911,42938.0,42937.0,0.07220424]
[1642249849969,0.30009887,42944.0,42937.0,0.07220424]
[1642249850170,0.01093911,42938.0,42937.0,0.07220424]
[1642249850370,0.01093911,42938.0,42937.0,0.2092526]
[1642249850570,0.01093911,42938.0,42937.0,0.07220424]
[1642249850971,0.01093911,42938.0,42937.0,0.86889956]
[1642249851172,0.01093911,42938.0,42937.0,0.98531156]
[1642249851772,0.01093911,42938.0,42937.0,0.18861624]
[1642249853014,0.01093911,42938.0,42937.0,0.32490884]
[1642249853214,0.01093911,42938.0,42937.0,0.18861624]
[1642249853816,0.01093911,42938.0,42937.0,0.98531156]
[1642249854017,0.00951631,42938.0,42937.0,0.98531156]
[1642249854718,0.00951631,42938.0,42937.0,0.14381624]
[1642249854919,0.00951631,42938.0,42937.0,0.29504012]
[1642249855118,0.00951631,42938.0,42937.0,0.14381624]
[1642249855317,0.28622124,42944.0,42937.0,0.2830893]
[1642249855518,0.00951631,42938.0,42937.0,0.2830893]
[1642249856120,0.00951631,42938.0,42937.0,0.25568506]
[1642249856358,0.00951631,42938.0,42937.0,0.90568506]
[1642249859562,0.00951631,42938.0,42937.0,0.86088506]
[1642249860417,0.00951631,42938.0,42937.0,0.96088506]
[1642249860819,0.00951631,42938.0,42937.0,0.96853892]
[1642249861018,0.00951631,42938.0,42937.0,0.96088506]
[1642249862622,0.00951631,42938.0,42937.0,0.86088506]
[1642249863222,0.00951631,42938.0,42937.0,0.071612]
[1642249863424,0.00951631,42938.0,42937.0,0.20847869]
[1642249864071,0.00951631,42938.0,42937.0,0.071612]
[1642249864271,0.0083723,42938.0,42937.0,0.071612]
[1642249864471,0.33201883,42945.0,42937.0,0.071612]
[1642249864671,0.33201883,42945.0,42937.0,0.027012]
[1642249864870,0.0083723,42941.0,42937.0,0.027012]
[1642249865071,0.0083723,42941.0,42937.0,0.23224534]
[1642249865475,0.0083723,42941.0,42938.0,0.058199]
[1642249866274,0.0083723,42941.0,42939.0,0.058201]
[1642249867714,0.0083723,42941.0,42940.0,0.13496221]
[1642249868119,0.0083723,42941.0,42940.0,0.58496221]
[1642249869017,0.0083723,42941.0,42940.0,0.68496221]
[1642249869219,0.0083723,42941.0,42940.0,1.23496221]
[1642249869620,0.0083723,42941.0,42940.0,0.64026221]
[1642249869820,0.0083723,42941.0,42940.0,0.55]
[1642249870520,0.0083723,42941.0,42940.0,0.61209163]
[1642249871266,0.0083723,42941.0,42940.0,0.51209163]
[1642249871468,0.0083723,42941.0,42940.0,0.65080395]
[1642249873473,0.0083723,42941.0,42940.0,0.51209163]
[1642249874470,0.0083723,42941.0,42940.0,0.64801606]
[1642249874670,0.0083723,42941.0,42940.0,0.15261606]
[1642249874871,0.00538805,42941.0,42940.0,0.01669163]
[1642249875111,0.25059144,42946.0,42940.0,0.01669163]
[1642249875312,0.25059144,42946.0,42940.0,0.81333795]
[1642249875512,0.00538805,42943.0,42940.0,0.81333795]
[1642249875813,0.00538805,42943.0,42940.0,0.79664632]
[1642249876016,0.00538805,42943.0,42941.0,0.058206]
[1642249879765,0.00538805,42943.0,42941.0,0.013606]
[1642249880467,0.27788952,42945.0,42941.0,0.013606]
[1642249880667,0.00538805,42944.0,42941.0,0.013606]
[1642249884720,0.00538805,42944.0,42939.0,0.80959009]
[1642249885422,0.00538805,42944.0,42939.0,0.85485632]
[1642249885820,0.13228576,42946.0,42939.0,0.85485632]
[1642249886022,0.00538805,42942.0,42939.0,0.85485632]
[1642249886266,0.00538805,42942.0,42939.0,0.05821]
[1642249889074,0.00538805,42942.0,42940.0,0.04245995]
[1642249889772,0.00538805,42942.0,42939.0,0.0920721]
[1642249890218,0.00538805,42942.0,42941.0,0.25135964]
[1642249891118,0.00538805,42942.0,42940.0,0.831567]